[Event "Titled Tuesday Blitz July 25 Early 2023"]
[White "ATM622"]
[Black "Nakamura, Hikaru"]
[BlackFideId "2016192"]
[WhiteElo "2505"]
[BlackElo "3300"]
[Result "0-1"]
[Round "1"]
[TimeControl "180+2"]
[Date "2023.07.25"]
[WhiteClock "0:01:47"]
[BlackClock "0:01:37"]
[Board "1"]

1. d4 {[%clk 0:03:00]}  a6 {[%clk 0:02:58]} 2. c4 {[%clk 0:02:58]}  e6 {[%clk 0:02:54]} 3. g3 {[%clk 0:02:56]}  c5 {[%clk 0:02:52]} 4. d5 {[%clk 0:02:55]}  exd5 {[%clk 0:02:52]} 5. cxd5 {[%clk 0:02:54]}  b5 {[%clk 0:02:52]} 6. Bg2 {[%clk 0:02:53]}  d6 {[%clk 0:02:53]} 7. Nf3 {[%clk 0:02:52]}  Nf6 {[%clk 0:02:53]} 8. O-O {[%clk 0:02:50]}  Be7 {[%clk 0:02:53]} 9. a4 {[%clk 0:02:46]}  Bb7 {[%clk 0:02:52]} 10. axb5 {[%clk 0:02:40]}  axb5 {[%clk 0:02:53]} 11. Rxa8 {[%clk 0:02:38]}  Bxa8 {[%clk 0:02:54]} 12. Nh4 {[%clk 0:02:30]}  g6 {[%clk 0:02:44]} 13. e4 {[%clk 0:02:28]}  O-O {[%clk 0:02:44]} 14. Bh6 {[%clk 0:02:24]}  Re8 {[%clk 0:02:44]} 15. Re1 {[%clk 0:02:23]}  Nbd7 {[%clk 0:02:41]} 16. f4 {[%clk 0:02:20]}  Bf8 {[%clk 0:02:38]} 17. Bxf8 {[%clk 0:02:16]}  Kxf8 {[%clk 0:02:39]} 18. Qd2 {[%clk 0:02:14]}  c4 {[%clk 0:02:38]} 19. Nc3 {[%clk 0:02:11]}  Qb6+ {[%clk 0:02:33]} 20. Kh1 {[%clk 0:02:08]}  Nc5 {[%clk 0:02:27]} 21. Qd4 {[%clk 0:02:05]}  Nfd7 {[%clk 0:02:01]} 22. e5 {[%clk 0:01:58]}  Nd3 {[%clk 0:01:59]} 23. Qxb6 {[%clk 0:01:55]}  Nxb6 {[%clk 0:01:59]} 24. Re2 {[%clk 0:01:55]}  b4 {[%clk 0:01:53]} 25. Ne4 {[%clk 0:01:55]}  dxe5 {[%clk 0:01:52]} 26. Nf6 {[%clk 0:01:52]}  Rd8 {[%clk 0:01:50]} 27. fxe5 {[%clk 0:01:52]}  Nxd5 {[%clk 0:01:50]} 28. Nxh7+ {[%clk 0:01:49]}  Kg7 {[%clk 0:01:38]} 29. Ng5 {[%clk 0:01:49]}  c3 {[%clk 0:01:39]} 30. e6 {[%clk 0:01:47]}  cxb2 {[%clk 0:01:37]} 0-1


[Site "https://www.chess.com"]

[Event "Titled Tuesday Blitz July 25 Early 2023"]
[White "Vachier-Lagrave, Maxime"]
[Black "Kaplan, Avi Harrison"]
[WhiteFideId "623539"]
[BlackFideId "30934559"]
[WhiteElo "3127"]
[BlackElo "2505"]
[Result "1-0"]
[Round "1"]
[TimeControl "180+2"]
[Date "2023.07.25"]
[WhiteClock "0:00:13"]
[BlackClock "0:00:03"]
[Board "2"]

1. e3 {[%clk 0:02:58]}  c5 {[%clk 0:02:54]} 2. d4 {[%clk 0:02:56]}  Nf6 {[%clk 0:02:43]} 3. Nf3 {[%clk 0:02:54]}  g6 {[%clk 0:02:41]} 4. Be2 {[%clk 0:02:36]}  Bg7 {[%clk 0:02:39]} 5. O-O {[%clk 0:02:35]}  O-O {[%clk 0:02:39]} 6. dxc5 {[%clk 0:02:32]}  Qa5 {[%clk 0:02:31]} 7. a3 {[%clk 0:02:31]}  Qxc5 {[%clk 0:02:31]} 8. b4 {[%clk 0:02:32]}  Qc7 {[%clk 0:02:31]} 9. Bb2 {[%clk 0:02:32]}  b6 {[%clk 0:02:28]} 10. c4 {[%clk 0:02:30]}  Bb7 {[%clk 0:02:28]} 11. Nc3 {[%clk 0:02:29]}  d6 {[%clk 0:02:27]} 12. Rc1 {[%clk 0:02:28]}  Nbd7 {[%clk 0:02:26]} 13. Nd5 {[%clk 0:02:24]}  Qd8 {[%clk 0:02:08]} 14. Nf4 {[%clk 0:02:21]}  Rc8 {[%clk 0:02:04]} 15. Qb3 {[%clk 0:02:20]}  Rc7 {[%clk 0:01:50]} 16. Rfd1 {[%clk 0:02:17]}  Qa8 {[%clk 0:01:50]} 17. Ne1 {[%clk 0:01:56]}  Rfc8 {[%clk 0:01:45]} 18. h4 {[%clk 0:01:41]}  Ne5 {[%clk 0:01:07]} 19. h5 {[%clk 0:01:29]}  g5 {[%clk 0:01:04]} 20. Nh3 {[%clk 0:01:23]}  h6 {[%clk 0:01:04]} 21. f4 {[%clk 0:01:17]}  gxf4 {[%clk 0:01:05]} 22. exf4 {[%clk 0:01:18]}  Ned7 {[%clk 0:00:53]} 23. Nf2 {[%clk 0:01:12]}  Nf8 {[%clk 0:00:32]} 24. Ng4 {[%clk 0:01:03]}  Nxg4 {[%clk 0:00:29]} 25. Bxg4 {[%clk 0:01:04]}  Ne6 {[%clk 0:00:27]} 26. Bxg7 {[%clk 0:01:02]}  Kxg7 {[%clk 0:00:26]} 27. Qc3+ {[%clk 0:01:00]}  Kg8 {[%clk 0:00:25]} 28. Qg3 {[%clk 0:00:56]}  Kf8 {[%clk 0:00:24]} 29. Bxe6 {[%clk 0:00:54]}  fxe6 {[%clk 0:00:25]} 30. Qg6 {[%clk 0:00:54]}  Be4 {[%clk 0:00:21]} 31. Qxe6 {[%clk 0:00:24]}  b5 {[%clk 0:00:17]} 32. Rd4 {[%clk 0:00:22]}  Rxc4 {[%clk 0:00:10]} 33. Rxe4 {[%clk 0:00:20]}  Rxc1 {[%clk 0:00:07]} 34. Qxe7+ {[%clk 0:00:19]}  Kg8 {[%clk 0:00:08]} 35. Qe6+ {[%clk 0:00:19]}  Kf8 {[%clk 0:00:08]} 36. Qxh6+ {[%clk 0:00:17]}  Kg8 {[%clk 0:00:08]} 37. Qg6+ {[%clk 0:00:17]}  Kf8 {[%clk 0:00:07]} 38. Qf6+ {[%clk 0:00:17]}  Kg8 {[%clk 0:00:08]} 39. Re7 {[%clk 0:00:17]}  Rxe1+ {[%clk 0:00:05]} 40. Rxe1 {[%clk 0:00:18]}  Qd5 {[%clk 0:00:03]} 41. h6 {[%clk 0:00:13]}  Rc7 {[%clk 0:00:03]} 42. Re8+ {[%clk 0:00:12]}  Kh7 {[%clk 0:00:03]} 43. Rh8# {[%clk 0:00:13]} 1-0


[Site "https://www.chess.com"]

[Event "Titled Tuesday Blitz July 25 Early 2023"]
[White "Ginzburg, Yakov"]
[Black "Bluebaum, Matthias"]
[WhiteFideId "4157176"]
[BlackFideId "24651516"]
[WhiteElo "2503"]
[BlackElo "3045"]
[Result "0-1"]
[Round "1"]
[TimeControl "180+2"]
[Date "2023.07.25"]
[WhiteClock "0:00:04"]
[BlackClock "0:01:22"]
[Board "7"]

1. e4 {[%clk 0:02:57]}  e6 {[%clk 0:03:00]} 2. d4 {[%clk 0:02:57]}  d5 {[%clk 0:03:01]} 3. e5 {[%clk 0:02:57]}  c5 {[%clk 0:03:01]} 4. Qg4 {[%clk 0:02:56]}  Nc6 {[%clk 0:03:00]} 5. Nf3 {[%clk 0:02:56]}  h5 {[%clk 0:02:58]} 6. Qg3 {[%clk 0:02:56]}  Nge7 {[%clk 0:02:55]} 7. dxc5 {[%clk 0:02:30]}  Nf5 {[%clk 0:02:42]} 8. Qh3 {[%clk 0:02:30]}  Bxc5 {[%clk 0:02:35]} 9. g4 {[%clk 0:02:19]}  Nfd4 {[%clk 0:02:31]} 10. Nxd4 {[%clk 0:02:18]}  Bxd4 {[%clk 0:02:32]} 11. f4 {[%clk 0:02:13]}  f6 {[%clk 0:02:12]} 12. c3 {[%clk 0:02:12]}  Bb6 {[%clk 0:02:12]} 13. exf6 {[%clk 0:01:41]}  Qxf6 {[%clk 0:02:13]} 14. g5 {[%clk 0:01:38]}  Qf7 {[%clk 0:02:09]} 15. Qg3 {[%clk 0:01:13]}  e5 {[%clk 0:02:01]} 16. Be2 {[%clk 0:00:45]}  h4 {[%clk 0:01:38]} 17. Qf3 {[%clk 0:00:26]}  e4 {[%clk 0:01:38]} 18. Qg2 {[%clk 0:00:25]}  Bf5 {[%clk 0:01:37]} 19. Nd2 {[%clk 0:00:11]}  d4 {[%clk 0:01:37]} 20. Nc4 {[%clk 0:00:06]}  O-O-O {[%clk 0:01:35]} 21. Bg4 {[%clk 0:00:06]}  Bc7 {[%clk 0:01:24]} 22. Qxe4 {[%clk 0:00:04]}  Bxg4 {[%clk 0:01:24]} 23. O-O {[%clk 0:00:04]}  Qxc4 {[%clk 0:01:22]} 0-1


[Site "https://www.chess.com"]

[Event "Titled Tuesday Blitz July 25 Early 2023"]
[White "Andreikin, Dmitry"]
[Black "Karamsetty, Jeevan"]
[WhiteFideId "4158814"]
[BlackFideId "2025337"]
[WhiteElo "3038"]
[BlackElo "2503"]
[Result "1-0"]
[Round "1"]
[TimeControl "180+2"]
[Date "2023.07.25"]
[WhiteClock "0:00:06"]
[BlackClock "0:00:04"]
[Board "8"]

1. d4 {[%clk 0:03:00]}  d6 {[%clk 0:03:00]} 2. e4 {[%clk 0:03:00]}  Nf6 {[%clk 0:02:59]} 3. Nc3 {[%clk 0:03:00]}  e5 {[%clk 0:03:00]} 4. Nf3 {[%clk 0:02:59]}  Nbd7 {[%clk 0:02:58]} 5. Bc4 {[%clk 0:02:58]}  Be7 {[%clk 0:02:59]} 6. g4 {[%clk 0:02:58]}  exd4 {[%clk 0:02:43]} 7. Qxd4 {[%clk 0:02:50]}  O-O {[%clk 0:02:30]} 8. g5 {[%clk 0:02:49]}  Ng4 {[%clk 0:02:30]} 9. Bf4 {[%clk 0:02:41]}  Nde5 {[%clk 0:02:02]} 10. Be2 {[%clk 0:02:07]}  Nxf3+ {[%clk 0:01:58]} 11. Bxf3 {[%clk 0:02:08]}  Bxg5 {[%clk 0:01:52]} 12. Bxg5 {[%clk 0:02:08]}  Qxg5 {[%clk 0:01:53]} 13. Bxg4 {[%clk 0:02:08]}  Bxg4 {[%clk 0:01:34]} 14. Rg1 {[%clk 0:02:06]}  Qh4 {[%clk 0:01:31]} 15. Nd5 {[%clk 0:01:44]}  c5 {[%clk 0:01:22]} 16. Qe3 {[%clk 0:01:23]}  Rae8 {[%clk 0:01:17]} 17. h3 {[%clk 0:00:45]}  Bh5 {[%clk 0:00:59]} 18. Kd2 {[%clk 0:00:32]}  Rxe4 {[%clk 0:00:49]} 19. Qxe4 {[%clk 0:00:27]}  Qxf2+ {[%clk 0:00:38]} 20. Kc3 {[%clk 0:00:27]}  Bg6 {[%clk 0:00:27]} 21. Ne7+ {[%clk 0:00:22]}  Kh8 {[%clk 0:00:27]} 22. Nxg6+ {[%clk 0:00:23]}  hxg6 {[%clk 0:00:23]} 23. Raf1 {[%clk 0:00:18]}  Qh2 {[%clk 0:00:20]} 24. b3 {[%clk 0:00:11]}  b5 {[%clk 0:00:09]} 25. Kb2 {[%clk 0:00:11]}  d5 {[%clk 0:00:05]} 26. Qxd5 {[%clk 0:00:09]}  Qc7 {[%clk 0:00:06]} 27. Rxg6 {[%clk 0:00:08]}  c4 {[%clk 0:00:04]} 28. Rg4 {[%clk 0:00:06]}  c3+ {[%clk 0:00:03]} 29. Kb1 {[%clk 0:00:06]}  Qe7 {[%clk 0:00:04]} 30. Qh5+ {[%clk 0:00:04]}  Kg8 {[%clk 0:00:04]} 31. Rh4 {[%clk 0:00:05]}  f6 {[%clk 0:00:03]} 32. Qh7+ {[%clk 0:00:05]}  Kf7 {[%clk 0:00:04]} 33. Rg4 {[%clk 0:00:06]}  Qa3 {[%clk 0:00:03]} 34. Qxg7+ {[%clk 0:00:06]}  Ke8 {[%clk 0:00:02]} 35. Re4+ {[%clk 0:00:06]}  Kd8 {[%clk 0:00:03]} 36. Rd1+ {[%clk 0:00:06]}  Kc8 {[%clk 0:00:03]} 37. Qd7+ {[%clk 0:00:06]}  Kb8 {[%clk 0:00:04]} 38. Qxb5+ {[%clk 0:00:07]}  Ka8 {[%clk 0:00:03]} 39. Qc6+ {[%clk 0:00:06]}  Kb8 {[%clk 0:00:04]} 40. Qd6+ {[%clk 0:00:06]} 1-0


[Site "https://www.chess.com"]

[Event "Titled Tuesday Blitz July 25 Early 2023"]
[White "Shimanov, Aleksandr"]
[Black "Roberson, Peter T"]
[WhiteFideId "4198603"]
[BlackFideId "412384"]
[WhiteElo "3010"]
[BlackElo "2500"]
[Result "1-0"]
[Round "1"]
[TimeControl "180+2"]
[Date "2023.07.25"]
[WhiteClock "0:01:48"]
[BlackClock "0:00:01"]
[Board "10"]

1. e4 {[%clk 0:03:00]}  e6 {[%clk 0:02:58]} 2. d4 {[%clk 0:02:59]}  d5 {[%clk 0:02:59]} 3. Nc3 {[%clk 0:03:00]}  Bb4 {[%clk 0:02:57]} 4. e5 {[%clk 0:02:58]}  c5 {[%clk 0:02:57]} 5. Bd2 {[%clk 0:02:58]}  Ne7 {[%clk 0:02:56]} 6. a3 {[%clk 0:02:49]}  Bxc3 {[%clk 0:02:56]} 7. Bxc3 {[%clk 0:02:50]}  b6 {[%clk 0:02:56]} 8. h4 {[%clk 0:02:49]}  Ba6 {[%clk 0:02:51]} 9. Bxa6 {[%clk 0:02:48]}  Nxa6 {[%clk 0:02:52]} 10. h5 {[%clk 0:02:47]}  h6 {[%clk 0:02:52]} 11. Qe2 {[%clk 0:02:45]}  cxd4 {[%clk 0:02:53]} 12. Bxd4 {[%clk 0:02:45]}  Nc5 {[%clk 0:02:53]} 13. O-O-O {[%clk 0:02:33]}  Rc8 {[%clk 0:02:33]} 14. g4 {[%clk 0:02:29]}  Nc6 {[%clk 0:02:20]} 15. Nf3 {[%clk 0:02:25]}  Nb3+ {[%clk 0:01:28]} 16. Kb1 {[%clk 0:02:19]}  Nbxd4 {[%clk 0:01:26]} 17. Nxd4 {[%clk 0:02:19]}  Nxd4 {[%clk 0:01:24]} 18. Rxd4 {[%clk 0:02:20]}  O-O {[%clk 0:01:22]} 19. f4 {[%clk 0:02:19]}  Rc5 {[%clk 0:01:07]} 20. Rg1 {[%clk 0:02:17]}  Qc7 {[%clk 0:01:01]} 21. g5 {[%clk 0:02:16]}  Rc8 {[%clk 0:00:55]} 22. c3 {[%clk 0:02:09]}  hxg5 {[%clk 0:00:49]} 23. Rxg5 {[%clk 0:01:58]}  Kh8 {[%clk 0:00:23]} 24. f5 {[%clk 0:01:51]}  exf5 {[%clk 0:00:17]} 25. Rxf5 {[%clk 0:01:52]}  Rxc3 {[%clk 0:00:06]} 26. bxc3 {[%clk 0:01:53]}  Qxc3 {[%clk 0:00:06]} 27. Qb2 {[%clk 0:01:50]}  Qh3 {[%clk 0:00:03]} 28. Rf2 {[%clk 0:01:48]}  Qh1+ {[%clk 0:00:01]} 29. Ka2 {[%clk 0:01:48]} 1-0


[Site "https://www.chess.com"]

[Event "Titled Tuesday Blitz July 25 Early 2023"]
[White "luksona14"]
[Black "Pranav, V"]
[BlackFideId "25060783"]
[WhiteElo "2500"]
[BlackElo "3003"]
[Result "0-1"]
[Round "1"]
[TimeControl "180+2"]
[Date "2023.07.25"]
[WhiteClock "0:01:45"]
[BlackClock "0:00:36"]
[Board "13"]

1. e4 {[%clk 0:02:59]}  e5 {[%clk 0:03:00]} 2. Nf3 {[%clk 0:02:58]}  Nc6 {[%clk 0:03:00]} 3. Bc4 {[%clk 0:02:59]}  Nf6 {[%clk 0:02:59]} 4. Nc3 {[%clk 0:02:58]}  Be7 {[%clk 0:02:58]} 5. O-O {[%clk 0:02:58]}  O-O {[%clk 0:02:58]} 6. d4 {[%clk 0:02:59]}  exd4 {[%clk 0:02:59]} 7. Nxd4 {[%clk 0:02:59]}  d6 {[%clk 0:02:59]} 8. f3 {[%clk 0:02:58]}  Ne5 {[%clk 0:02:56]} 9. Bb3 {[%clk 0:02:58]}  a6 {[%clk 0:02:55]} 10. a4 {[%clk 0:02:55]}  Rb8 {[%clk 0:02:53]} 11. a5 {[%clk 0:02:54]}  c5 {[%clk 0:02:52]} 12. Nde2 {[%clk 0:02:41]}  c4 {[%clk 0:02:52]} 13. Ba2 {[%clk 0:02:41]}  Qxa5 {[%clk 0:02:52]} 14. Be3 {[%clk 0:02:41]}  Qc7 {[%clk 0:02:45]} 15. h3 {[%clk 0:02:40]}  b5 {[%clk 0:02:42]} 16. f4 {[%clk 0:02:40]}  Nc6 {[%clk 0:02:42]} 17. Nd5 {[%clk 0:02:40]}  Nxd5 {[%clk 0:02:42]} 18. exd5 {[%clk 0:02:41]}  Nb4 {[%clk 0:02:42]} 19. c3 {[%clk 0:02:39]}  Nxa2 {[%clk 0:02:39]} 20. Rxa2 {[%clk 0:02:40]}  Re8 {[%clk 0:02:39]} 21. Nd4 {[%clk 0:02:36]}  Bf8 {[%clk 0:02:33]} 22. Qf3 {[%clk 0:02:35]}  Bb7 {[%clk 0:02:29]} 23. Nc6 {[%clk 0:02:33]}  Rbc8 {[%clk 0:02:26]} 24. Rfa1 {[%clk 0:02:32]}  Qd7 {[%clk 0:02:18]} 25. Bd4 {[%clk 0:02:31]}  Qf5 {[%clk 0:02:00]} 26. Rf1 {[%clk 0:02:29]}  Qe4 {[%clk 0:01:55]} 27. Qxe4 {[%clk 0:02:26]}  Rxe4 {[%clk 0:01:56]} 28. Nb4 {[%clk 0:02:27]}  g6 {[%clk 0:01:47]} 29. f5 {[%clk 0:02:18]}  Bg7 {[%clk 0:01:40]} 30. f6 {[%clk 0:02:18]}  Bh6 {[%clk 0:01:40]} 31. Nxa6 {[%clk 0:02:16]}  Bxd5 {[%clk 0:01:32]} 32. Nb4 {[%clk 0:02:15]}  Be6 {[%clk 0:01:30]} 33. Ra7 {[%clk 0:02:08]}  Be3+ {[%clk 0:01:14]} 34. Bxe3 {[%clk 0:02:07]}  Rxe3 {[%clk 0:01:15]} 35. Rf2 {[%clk 0:02:05]}  h5 {[%clk 0:01:15]} 36. Rb7 {[%clk 0:02:04]}  Rc5 {[%clk 0:01:10]} 37. Rb6 {[%clk 0:02:01]}  Re1+ {[%clk 0:01:01]} 38. Kh2 {[%clk 0:02:01]}  Rd1 {[%clk 0:01:01]} 39. Na6 {[%clk 0:02:01]}  Rf5 {[%clk 0:00:55]} 40. Rxf5 {[%clk 0:02:01]}  Bxf5 {[%clk 0:00:48]} 41. Rxb5 {[%clk 0:01:57]}  h4 {[%clk 0:00:49]} 42. Rb8+ {[%clk 0:01:55]}  Kh7 {[%clk 0:00:48]} 43. Nc7 {[%clk 0:01:56]}  g5 {[%clk 0:00:45]} 44. Rf8 {[%clk 0:01:51]}  Kg6 {[%clk 0:00:40]} 45. Ne8 {[%clk 0:01:51]}  Be4 {[%clk 0:00:37]} 46. Rg8+ {[%clk 0:01:51]}  Kf5 {[%clk 0:00:37]} 47. g4+ {[%clk 0:01:45]}  Kf4 {[%clk 0:00:36]} 0-1


[Site "https://www.chess.com"]

[Event "Titled Tuesday Blitz July 25 Early 2023"]
[White "Martinez Alcantara, Jose Eduardo"]
[Black "Ronka, Erik"]
[WhiteFideId "3805662"]
[BlackFideId "505080"]
[WhiteElo "2981"]
[BlackElo "2489"]
[Result "1-0"]
[Round "1"]
[TimeControl "180+2"]
[Date "2023.07.25"]
[WhiteClock "0:01:24"]
[BlackClock "0:01:05"]
[Board "18"]

1. e4 {[%clk 0:02:59]}  c5 {[%clk 0:02:58]} 2. Nf3 {[%clk 0:03:00]}  d6 {[%clk 0:02:59]} 3. c3 {[%clk 0:03:01]}  Nf6 {[%clk 0:02:59]} 4. h3 {[%clk 0:03:01]}  Nc6 {[%clk 0:02:55]} 5. Bd3 {[%clk 0:03:02]}  e5 {[%clk 0:02:50]} 6. Bc2 {[%clk 0:03:02]}  Be7 {[%clk 0:02:50]} 7. d4 {[%clk 0:03:00]}  O-O {[%clk 0:02:31]} 8. dxc5 {[%clk 0:02:59]}  dxc5 {[%clk 0:02:31]} 9. Qe2 {[%clk 0:03:00]}  h6 {[%clk 0:02:26]} 10. O-O {[%clk 0:02:59]}  Be6 {[%clk 0:02:27]} 11. Nbd2 {[%clk 0:02:55]}  Qc7 {[%clk 0:02:25]} 12. Re1 {[%clk 0:02:47]}  a6 {[%clk 0:02:25]} 13. Nf1 {[%clk 0:02:45]}  b5 {[%clk 0:02:25]} 14. Ne3 {[%clk 0:02:46]}  c4 {[%clk 0:02:25]} 15. Nh2 {[%clk 0:02:36]}  Rfe8 {[%clk 0:02:11]} 16. Qf3 {[%clk 0:02:36]}  Rad8 {[%clk 0:02:02]} 17. Nhg4 {[%clk 0:02:35]}  Nxg4 {[%clk 0:02:02]} 18. hxg4 {[%clk 0:02:36]}  Nd4 {[%clk 0:01:41]} 19. cxd4 {[%clk 0:02:04]}  exd4 {[%clk 0:01:42]} 20. Nf5 {[%clk 0:02:04]}  Bxf5 {[%clk 0:01:36]} 21. gxf5 {[%clk 0:02:05]}  d3 {[%clk 0:01:32]} 22. Bf4 {[%clk 0:02:06]}  Qa5 {[%clk 0:01:25]} 23. Bxd3 {[%clk 0:01:46]}  Rxd3 {[%clk 0:01:17]} 24. Qg4 {[%clk 0:01:44]}  Bc5 {[%clk 0:01:10]} 25. Bxh6 {[%clk 0:01:33]}  Bf8 {[%clk 0:01:05]} 26. Bxg7 {[%clk 0:01:24]} 1-0


[Site "https://www.chess.com"]

[Event "Titled Tuesday Blitz July 25 Early 2023"]
[White "Khater, Sherif"]
[Black "Movahed, Sina"]
[WhiteFideId "2034280"]
[BlackFideId "42520835"]
[WhiteElo "2488"]
[BlackElo "2973"]
[Result "0-1"]
[Round "1"]
[TimeControl "180+2"]
[Date "2023.07.25"]
[WhiteClock "0:01:51"]
[BlackClock "0:02:12"]
[Board "19"]

1. Nf3 {[%clk 0:03:00]}  Nf6 {[%clk 0:02:59]} 2. b3 {[%clk 0:03:00]}  c5 {[%clk 0:02:57]} 3. Bb2 {[%clk 0:03:00]}  d6 {[%clk 0:02:57]} 4. e3 {[%clk 0:03:00]}  Nc6 {[%clk 0:02:57]} 5. d4 {[%clk 0:03:01]}  cxd4 {[%clk 0:02:58]} 6. Nxd4 {[%clk 0:03:01]}  Bd7 {[%clk 0:02:56]} 7. Be2 {[%clk 0:03:01]}  g6 {[%clk 0:02:56]} 8. O-O {[%clk 0:03:00]}  Bg7 {[%clk 0:02:56]} 9. Nd2 {[%clk 0:03:01]}  O-O {[%clk 0:02:56]} 10. Rb1 {[%clk 0:03:00]}  a5 {[%clk 0:02:55]} 11. a4 {[%clk 0:03:00]}  Rc8 {[%clk 0:02:54]} 12. Bb5 {[%clk 0:02:59]}  Nxd4 {[%clk 0:02:53]} 13. Bxd4 {[%clk 0:02:59]}  Bxb5 {[%clk 0:02:52]} 14. axb5 {[%clk 0:02:59]}  Qd7 {[%clk 0:02:52]} 15. Nc4 {[%clk 0:02:59]}  Qxb5 {[%clk 0:02:51]} 16. Nb6 {[%clk 0:02:52]}  Rc6 {[%clk 0:02:45]} 17. Na4 {[%clk 0:02:52]}  Qf5 {[%clk 0:02:34]} 18. c4 {[%clk 0:02:48]}  b5 {[%clk 0:02:34]} 19. cxb5 {[%clk 0:02:45]}  Qxb5 {[%clk 0:02:35]} 20. Qd2 {[%clk 0:02:39]}  Rfc8 {[%clk 0:02:34]} 21. h3 {[%clk 0:02:39]}  h5 {[%clk 0:02:33]} 22. Qa2 {[%clk 0:02:32]}  Nd5 {[%clk 0:02:28]} 23. Bxg7 {[%clk 0:02:31]}  Kxg7 {[%clk 0:02:29]} 24. Qa1+ {[%clk 0:02:32]}  Kg8 {[%clk 0:02:29]} 25. e4 {[%clk 0:02:23]}  Nf4 {[%clk 0:02:27]} 26. Qa3 {[%clk 0:02:13]}  Qg5 {[%clk 0:02:24]} 27. g3 {[%clk 0:02:12]}  h4 {[%clk 0:02:24]} 28. g4 {[%clk 0:01:55]}  Nxh3+ {[%clk 0:02:24]} 29. Kh2 {[%clk 0:01:55]}  Qf4+ {[%clk 0:02:11]} 30. Kxh3 {[%clk 0:01:55]}  Rc3+ {[%clk 0:02:11]} 31. Nxc3 {[%clk 0:01:54]}  Rxc3+ {[%clk 0:02:12]} 32. Kg2 {[%clk 0:01:51]}  Qxg4+ {[%clk 0:02:12]} 0-1


[Site "https://www.chess.com"]

[Event "Titled Tuesday Blitz July 25 Early 2023"]
[White "Perske, Thore"]
[Black "Indjic, Aleksandar"]
[WhiteFideId "12902195"]
[BlackFideId "911925"]
[WhiteElo "2487"]
[BlackElo "2969"]
[Result "0-1"]
[Round "1"]
[TimeControl "180+2"]
[Date "2023.07.25"]
[WhiteClock "0:02:21"]
[BlackClock "0:02:41"]
[Board "21"]

1. d4 {[%clk 0:02:59]}  Nf6 {[%clk 0:02:58]} 2. g3 {[%clk 0:02:59]}  c5 {[%clk 0:02:58]} 3. dxc5 {[%clk 0:02:59]}  e6 {[%clk 0:02:58]} 4. Bg2 {[%clk 0:02:59]}  Bxc5 {[%clk 0:02:58]} 5. Nf3 {[%clk 0:02:58]}  d5 {[%clk 0:02:58]} 6. O-O {[%clk 0:02:59]}  b5 {[%clk 0:02:56]} 7. a4 {[%clk 0:02:56]}  b4 {[%clk 0:02:55]} 8. c4 {[%clk 0:02:55]}  bxc3 {[%clk 0:02:54]} 9. bxc3 {[%clk 0:02:54]}  Ba6 {[%clk 0:02:53]} 10. Re1 {[%clk 0:02:40]}  Nbd7 {[%clk 0:02:51]} 11. Nd4 {[%clk 0:02:37]}  O-O {[%clk 0:02:50]} 12. Nd2 {[%clk 0:02:34]}  e5 {[%clk 0:02:43]} 13. N4b3 {[%clk 0:02:29]}  Bxf2+ {[%clk 0:02:42]} 14. Kxf2 {[%clk 0:02:27]}  Ng4+ {[%clk 0:02:42]} 15. Kf1 {[%clk 0:02:21]}  Ne3+ {[%clk 0:02:41]} 0-1


[Site "https://www.chess.com"]

[Event "Titled Tuesday Blitz July 25 Early 2023"]
[White "Bok, Benjamin"]
[Black "MateoReyes"]
[WhiteFideId "1017063"]
[WhiteElo "2959"]
[BlackElo "2486"]
[Result "1-0"]
[Round "1"]
[TimeControl "180+2"]
[Date "2023.07.25"]
[WhiteClock "0:00:22"]
[BlackClock "0:00:15"]
[Board "22"]

1. d4 {[%clk 0:03:00]}  Nf6 {[%clk 0:02:58]} 2. c4 {[%clk 0:02:57]}  g6 {[%clk 0:02:58]} 3. g3 {[%clk 0:02:56]}  Bg7 {[%clk 0:02:58]} 4. Bg2 {[%clk 0:02:55]}  O-O {[%clk 0:02:57]} 5. Nc3 {[%clk 0:02:55]}  d6 {[%clk 0:02:57]} 6. Nf3 {[%clk 0:02:48]}  Nbd7 {[%clk 0:02:56]} 7. O-O {[%clk 0:02:48]}  c6 {[%clk 0:02:56]} 8. e4 {[%clk 0:02:47]}  e5 {[%clk 0:02:55]} 9. Be3 {[%clk 0:02:45]}  Ng4 {[%clk 0:02:53]} 10. Bg5 {[%clk 0:02:42]}  f6 {[%clk 0:02:51]} 11. Bd2 {[%clk 0:02:24]}  Nh6 {[%clk 0:02:45]} 12. Qc2 {[%clk 0:02:16]}  Nf7 {[%clk 0:02:44]} 13. Rad1 {[%clk 0:02:14]}  Qe7 {[%clk 0:02:43]} 14. Rfe1 {[%clk 0:02:13]}  Nb6 {[%clk 0:02:06]} 15. b3 {[%clk 0:02:08]}  Bg4 {[%clk 0:02:02]} 16. Be3 {[%clk 0:02:05]}  exd4 {[%clk 0:01:58]} 17. Bxd4 {[%clk 0:01:38]}  Ne5 {[%clk 0:01:57]} 18. Qe2 {[%clk 0:01:27]}  Qe6 {[%clk 0:01:34]} 19. Rd2 {[%clk 0:00:59]}  Nbd7 {[%clk 0:01:28]} 20. Be3 {[%clk 0:00:33]}  Nf7 {[%clk 0:01:10]} 21. Nd4 {[%clk 0:00:32]}  Bxe2 {[%clk 0:00:58]} 22. Nxe6 {[%clk 0:00:32]}  Bg4 {[%clk 0:00:55]} 23. Nxf8 {[%clk 0:00:29]}  Kxf8 {[%clk 0:00:50]} 24. h3 {[%clk 0:00:28]}  Be6 {[%clk 0:00:49]} 25. Red1 {[%clk 0:00:28]}  a5 {[%clk 0:00:41]} 26. f4 {[%clk 0:00:27]}  h5 {[%clk 0:00:33]} 27. Kh2 {[%clk 0:00:27]}  Ke7 {[%clk 0:00:29]} 28. Na4 {[%clk 0:00:25]}  b5 {[%clk 0:00:26]} 29. cxb5 {[%clk 0:00:23]}  cxb5 {[%clk 0:00:26]} 30. Nc3 {[%clk 0:00:24]}  b4 {[%clk 0:00:25]} 31. Nb5 {[%clk 0:00:24]}  Rc8 {[%clk 0:00:21]} 32. Nxd6 {[%clk 0:00:24]}  Nxd6 {[%clk 0:00:21]} 33. Rxd6 {[%clk 0:00:25]}  Rc3 {[%clk 0:00:21]} 34. R6d3 {[%clk 0:00:24]}  Rc2 {[%clk 0:00:21]} 35. R1d2 {[%clk 0:00:23]}  Rc7 {[%clk 0:00:19]} 36. h4 {[%clk 0:00:19]}  Bg4 {[%clk 0:00:17]} 37. Bh3 {[%clk 0:00:19]}  Nc5 {[%clk 0:00:17]} 38. Bxc5+ {[%clk 0:00:18]}  Rxc5 {[%clk 0:00:17]} 39. Bxg4 {[%clk 0:00:19]}  hxg4 {[%clk 0:00:16]} 40. Rd7+ {[%clk 0:00:19]}  Kf8 {[%clk 0:00:16]} 41. Rd8+ {[%clk 0:00:20]}  Kf7 {[%clk 0:00:15]} 42. R2d7+ {[%clk 0:00:20]}  Ke6 {[%clk 0:00:15]} 43. Rxg7 {[%clk 0:00:21]}  Rc2+ {[%clk 0:00:15]} 44. Kg1 {[%clk 0:00:22]}  Rc1+ {[%clk 0:00:15]} 45. Kf2 {[%clk 0:00:22]}  Rc2+ {[%clk 0:00:15]} 46. Ke3 {[%clk 0:00:21]}  Rc3+ {[%clk 0:00:15]} 47. Rd3 {[%clk 0:00:22]} 1-0


[Site "https://www.chess.com"]